bitfinex/quotes_SOLUSD_20250413
["timestamp","ask_amount","ask_price","bid_price","bid_amount"]
[1744583186134,6.2759,127.48,127.44,12.62422175]
[1744583186752,18.90012175,127.48,127.43,12.62422175]
[1744583186942,6.2759,127.48,127.43,12.62422175]
[1744583187253,18.90012175,127.48,127.43,12.62422175]
[1744583187957,6.2759,127.48,127.44,12.62422175]
[1744583188134,27.45932175,127.49,127.45,12.62422175]
[1744583188337,14.8351,127.49,127.45,12.62422175]
[1744583189061,27.45932175,127.49,127.44,12.62422175]
[1744583190131,12.62422175,127.47,127.42,12.62422175]
[1744583190336,6.2764,127.46,127.42,12.62422175]
[1744583192957,12.62422175,127.43,127.41,0.063]
[1744583193169,12.62422175,127.42,127.41,0.063]
[1744583193754,12.62422175,127.43,127.41,0.063]
[1744583194139,7.9476,127.44,127.41,0.063]
[1744583194338,20.57182175,127.44,127.41,0.063]
[1744583195268,6.2779,127.43,127.41,0.063]
[1744583195768,18.90212175,127.43,127.41,0.063]
[1744583198169,7.8583,127.44,127.41,12.68722175]
[1744583198660,7.8583,127.44,127.41,0.063]
[1744583199870,20.48252175,127.44,127.41,0.063]
[1744583200167,89.1768,127.46,127.43,12.62422175]
[1744583200348,6.2761,127.47,127.43,12.62422175]
[1744583200545,6.2754,127.48,127.44,12.62422175]
[1744583201552,6.2754,127.48,127.45,12.62422175]
[1744583201767,10.1409,127.49,127.46,12.62422175]
[1744583201964,6.274,127.51,127.47,12.62422175]
[1744583202446,18.89822175,127.51,127.46,12.62422175]
[1744583203100,18.89822175,127.51,127.45,12.62422175]
[1744583203101,12.62422175,127.5,127.45,12.62422175]
[1744583203376,12.62422175,127.48,127.43,12.62422175]
[1744583203666,12.62422175,127.47,127.42,12.62422175]
[1744583203855,12.62422175,127.48,127.43,12.62422175]
[1744583204354,34.58672175,127.49,127.44,12.62422175]
[1744583204569,6.275,127.49,127.45,12.62422175]
[1744583205068,18.89922175,127.49,127.44,12.62422175]
[1744583205574,14.20512175,127.47,127.42,12.62422175]
[1744583205947,12.62422175,127.46,127.41,12.68722175]
[1744583206248,6.2769,127.45,127.41,12.68722175]
[1744583206655,6.2769,127.45,127.42,12.62422175]
[1744583207266,6.2766,127.46,127.42,12.62422175]
[1744583214987,12.62422175,127.43,127.41,0.063]
[1744583215190,6.2766,127.46,127.41,0.063]
[1744583215191,12.62422175,127.42,127.41,0.063]
[1744583215485,0.14216157,127.43,127.41,0.063]
[1744583215661,12.62422175,127.43,127.41,0.063]
[1744583216688,18.90212175,127.43,127.41,0.063]
[1744583216889,101.80182175,127.44,127.41,0.063]
[1744583217087,89.1776,127.44,127.41,0.063]
[1744583217491,12.62422175,127.46,127.41,0.063]
[1744583217656,1.5809,127.5,127.45,12.62422175]
[1744583217861,6.2742,127.51,127.49,12.62422175]
[1744583218491,6.2735,127.52,127.48,12.62422175]
[1744583220276,12.62422175,127.5,127.46,26.0]
[1744583220465,6.2735,127.52,127.47,12.62422175]
[1744583220670,18.89772175,127.52,127.47,12.62422175]
[1744583221297,6.2735,127.52,127.47,12.62422175]
[1744583221496,6.2735,127.52,127.48,12.62422175]
[1744583221887,18.89772175,127.52,127.48,12.62422175]
[1744583222195,18.89772175,127.52,127.44,19.18584489]
[1744583222395,18.89772175,127.52,127.47,12.62422175]
[1744583222597,18.89772175,127.52,127.48,12.62422175]
[1744583222786,6.2735,127.52,127.49,12.62422175]
[1744583223898,6.2735,127.52,127.48,12.62422175]
[1744583224999,12.62422175,127.51,127.45,26.0]
[1744583225199,12.62422175,127.51,127.44,1.94512314]
[1744583225200,12.62422175,127.51,127.46,38.62422175]
[1744583225902,18.89872175,127.5,127.43,101.24964886]
[1744583226072,12.62422175,127.48,127.43,101.24964886]
[1744583226271,6.2745,127.5,127.45,12.62422175]
[1744583226272,18.89872175,127.5,127.45,12.62422175]
[1744583226777,12.62422175,127.49,127.44,12.62422175]
[1744583227375,12.62422175,127.48,127.43,12.62422175]
[1744583227590,14.16662175,127.47,127.42,12.62422175]
[1744583227982,7.8188,127.47,127.43,12.62422175]
[1744583228578,12.62422175,127.45,127.41,0.063]
[1744583228798,12.62422175,127.45,127.41,12.68722175]
[1744583228984,12.62422175,127.45,127.41,0.063]
[1744583229691,12.62422175,127.45,127.41,12.68722175]
[1744583229892,12.62422175,127.46,127.41,12.68722175]
[1744583231305,6.2769,127.45,127.41,12.68722175]
[1744583232403,12.62422175,127.44,127.41,0.063]
[1744583232783,18.90112175,127.45,127.41,0.063]
[1744583234099,18.90082175,127.46,127.42,12.62422175]
[1744583234298,6.2766,127.46,127.42,12.62422175]
[1744583235014,90.7184,127.47,127.44,12.62422175]
[1744583235197,18.66832175,127.5,127.45,12.62422175]
[1744583235811,1.5424,127.51,127.48,12.62422175]
[1744583236316,1.5424,127.51,127.47,12.62422175]
[1744583237027,7.8166,127.51,127.47,12.62422175]
[1744583237189,20.44082175,127.51,127.46,38.62422175]
[1744583237691,12.62422175,127.48,127.43,12.62422175]
[1744583238111,36.12582175,127.51,127.46,12.62422175]
[1744583238914,12.62422175,127.5,127.46,12.62422175]
[1744583239715,18.89922175,127.49,127.44,12.62422175]
[1744583245025,6.275,127.49,127.45,12.62422175]
[1744583245203,18.89882175,127.5,127.45,12.62422175]
[1744583245705,18.89882175,127.5,127.45,18.90112175]
[1744583245907,18.89882175,127.5,127.45,12.62422175]
[1744583246603,18.89882175,127.5,127.45,18.90112175]
[1744583247033,20.44072175,127.51,127.46,12.62422175]
[1744583247315,14.7937,127.52,127.48,12.62422175]
[1744583247822,8.52,127.52,127.48,12.62422175]
[1744583248131,8.52,127.52,127.44,129.56637061]
[1744583248132,14.7935,127.52,127.44,101.24964886]
[1744583248313,12.62422175,127.5,127.45,12.62422175]
[1744583249326,18.89902175,127.5,127.45,12.62422175]
[1744583250224,6.2748,127.5,127.46,12.62422175]
[1744583250821,18.89902175,127.5,127.45,18.90102175]
[1744583251121,6.274,127.51,127.46,12.62422175]
[1744583251320,18.89822175,127.51,127.46,12.62422175]
[1744583251624,12.62422175,127.5,127.45,18.90102175]
[1744583252825,6.274,127.51,127.45,18.90102175]
[1744583253130,18.89822175,127.51,127.46,12.62422175]
[1744583255435,6.274,127.51,127.47,12.62422175]
[1744583256827,18.89822175,127.51,127.46,12.62422175]
[1744583257833,12.62422175,127.5,127.45,12.62422175]
[1744583259134,18.89892175,127.5,127.45,18.90102175]
[1744583259429,6.2747,127.5,127.45,18.90102175]
[1744583260331,6.2747,127.5,127.46,12.62422175]
[1744583261220,6.2747,127.5,127.45,18.90102175]
[1744583261537,6.2747,127.5,127.46,12.62422175]
[1744583263236,18.89832175,127.51,127.46,12.62422175]
[1744583263429,6.2741,127.51,127.47,12.62422175]
[1744583263630,27.39772175,127.52,127.47,12.62422175]
[1744583263831,14.7735,127.52,127.47,12.62422175]
[1744583264133,101.82722175,127.53,127.48,12.62422175]
[1744583264339,101.82722175,127.53,127.47,18.90012175]
[1744583264632,12.62422175,127.52,127.47,12.62422175]
[1744583264818,12.62422175,127.51,127.46,18.90042175]
[1744583265538,12.62422175,127.52,127.47,12.62422175]
[1744583266135,18.89812175,127.52,127.47,12.62422175]
[1744583267139,14.35634712,127.52,127.46,14.35864712]
[1744583268022,8.08244712,127.5,127.45,8.08244712]
[1744583268725,8.08244712,127.51,127.45,8.08244712]
[1744583269541,6.2745,127.5,127.46,8.08244712]
[1744583270319,14.35694712,127.5,127.45,8.08244712]
[1744583271049,6.2745,127.5,127.45,14.35924712]
[1744583271234,6.2745,127.5,127.46,8.08244712]
[1744583272650,6.2745,127.5,127.45,8.08244712]
[1744583273354,6.2745,127.5,127.46,8.08244712]
[1744583273536,6.2741,127.51,127.46,8.08244712]
[1744583274358,22.85614712,127.52,127.46,8.08244712]
[1744583274741,22.85614712,127.52,127.47,6.2759]
[1744583275655,8.08244712,127.51,127.47,6.2759]
[1744583276157,14.35644712,127.51,127.46,14.35884712]
[1744583276333,6.274,127.51,127.47,8.08244712]
[1744583277057,14.7736,127.52,127.47,8.08244712]
[1744583277358,82.93,127.53,127.49,8.08244712]
[1744583277564,0.03,127.53,127.49,8.08244712]
[1744583277854,6.303,127.53,127.49,8.08244712]
[1744583278539,0.03,127.53,127.51,8.08244712]
[1744583279056,0.03,127.53,127.5,8.08244712]
[1744583279764,0.03,127.53,127.48,18.64964886]
[1744583279963,8.11244712,127.53,127.49,26.0]
[1744583280635,8.08244712,127.51,127.45,8.48]
[1744583280839,8.08244712,127.49,127.42,18.64964886]
[1744583281040,8.08244712,127.49,127.44,8.08244712]
[1744583282274,1.586,127.5,127.46,4.08244712]
[1744583282769,7.8606,127.5,127.46,4.08244712]
[1744583283269,20.49121931,127.5,127.45,12.63061931]
[1744583283448,20.49121931,127.5,127.44,24.92684886]
[1744583283650,20.49121931,127.5,127.46,26.0]
[1744583283651,14.21661931,127.5,127.46,26.0]
[1744583283853,82.9,127.52,127.49,12.63061931]
[1744583284050,1.6401,127.53,127.49,12.63061931]
[1744583284443,14.27071931,127.53,127.48,12.63061931]
[1744583284947,20.54401931,127.53,127.48,12.63061931]
[1744583286042,12.63061931,127.51,127.46,37.55666817]
[1744583286246,12.63061931,127.52,127.47,12.63061931]
[1744583287042,18.90441931,127.52,127.47,38.63061931]
[1744583287368,18.90441931,127.52,127.47,44.90651931]
[1744583287968,6.2738,127.52,127.48,12.63061931]
[1744583288280,18.90441931,127.52,127.47,38.63061931]
[1744583288642,6.2738,127.52,127.48,12.63061931]
[1744583289270,18.90441931,127.52,127.47,44.90641931]
[1744583290453,6.2738,127.52,127.48,12.63061931]
[1744583290867,6.2738,127.52,127.47,44.90641931]
[1744583291471,6.2738,127.52,127.47,38.63061931]
[1744583291875,6.2738,127.52,127.47,44.90631931]
[1744583292177,6.2738,127.52,127.48,12.63061931]
[1744583292579,6.2738,127.52,127.47,44.90631931]
[1744583293573,6.2738,127.52,127.48,12.63061931]
[1744583293762,7.9131,127.53,127.48,18.90581931]
[1744583294156,7.9131,127.53,127.48,12.63061931]
[1744583294674,7.9131,127.53,127.48,18.90601931]
[1744583295053,7.9131,127.53,127.49,12.63061931]
[1744583296577,0.03,127.53,127.52,12.63061931]
[1744583296751,0.03,127.53,127.52,31.28026817]
[1744583298451,0.03,127.53,127.52,37.55376817]
[1744583299071,0.03,127.53,127.52,18.90411931]
[1744583300698,0.03,127.53,127.5,12.63061931]
[1744583300867,0.03,127.53,127.51,12.63061931]
[1744583302171,0.03,127.53,127.52,12.63061931]
[1744583303085,0.03,127.53,127.51,12.63061931]
[1744583304896,0.03,127.53,127.52,12.63061931]
[1744583305286,0.03,127.53,127.52,8.07616793]
[1744583307869,0.03,127.53,127.52,14.34966793]
[1744583308496,0.03,127.53,127.52,8.07616793]
[1744583311795,0.03,127.53,127.52,14.34966793]
[1744583312599,0.03,127.53,127.52,6.2735]
[1744583312798,0.03,127.53,127.52,8.07616793]
[1744583313798,0.03,127.53,127.52,26.72581679]
[1744583315200,0.03,127.53,127.52,32.99931679]
[1744583316603,0.03,127.53,127.52,148.33047322]
[1744583318681,0.03,127.53,127.52,116.0258015]
[1744583319503,0.03,127.53,127.52,148.33047322]
[1744583320199,0.03,127.53,127.52,116.0258015]
[1744583322398,0.03,127.53,127.52,148.33047322]
[1744583323219,0.03,127.53,127.52,148.18831165]
[1744583323401,0.03,127.53,127.52,115.88363993]
[1744583326211,0.03,127.53,127.52,148.33047322]
[1744583326796,0.03,127.53,127.52,116.0258015]
[1744583328010,0.03,127.53,127.52,115.88363993]
[1744583334019,0.03,127.55,127.54,0.28432314]
[1744583334194,0.03,127.57,127.56,26.28432314]
[1744583334510,0.03,127.57,127.56,34.36049107]
[1744583335196,0.03,127.57,127.56,52.72581679]
[1744583336317,0.03,127.57,127.56,58.99731679]
[1744583337017,0.03,127.57,127.56,26.0]
[1744583337216,0.03,127.57,127.56,59.4238015]
[1744583337405,0.03,127.57,127.56,142.0238015]
[1744583340918,0.03,127.57,127.56,141.88163993]
[1744583341407,0.03,127.57,127.55,24.92164886]
[1744583341614,0.03,127.57,127.56,8.07616793]
[1744583342424,0.03,127.57,127.55,26.72581679]
[1744583342619,0.03,127.57,127.55,32.99771679]
[1744583342927,0.03,127.57,127.56,8.07616793]
[1744583343628,0.03,127.57,127.56,27.01013993]
[1744583344119,0.03,127.57,127.56,116.0238015]
[1744583348035,0.03,127.57,127.56,115.88163993]
[1744583354126,0.03,127.57,127.56,116.0238015]
[1744583364849,0.03,127.57,127.56,115.88163993]
[1744583370155,0.03,127.57,127.54,11.74272726]
[1744583370372,0.03,127.57,127.55,26.72581679]
[1744583371152,0.03,127.57,127.56,8.07616793]
[1744583373569,0.03,127.57,127.56,32.99731679]
[1744583373770,2.8393057,127.59,127.58,0.28432314]
[1744583373953,0.03,127.6,127.59,0.14216157]
[1744583374151,0.03,127.6,127.59,109.46797836]
[1744583374578,0.03,127.6,127.59,115.73797836]
[1744583376873,0.03,127.6,127.59,109.32581679]
[1744583377048,0.03,127.6,127.59,115.59581679]
[1744583377378,0.03,127.6,127.59,109.32581679]
[1744583379075,0.03,127.6,127.59,26.72581679]
[1744583383967,0.03,127.6,127.59,8.07616793]
[1744583386087,0.03,127.6,127.59,26.0]
[1744583386592,0.03,127.6,127.57,82.6]
[1744583386791,0.03,127.6,127.57,90.67616793]
[1744583387784,0.03,127.6,127.57,8.07616793]
[1744583391101,0.03,127.6,127.58,8.07616793]
[1744583392394,0.03,127.6,127.56,6.2715]
[1744583392395,0.03,127.6,127.57,8.07616793]
[1744583395281,0.03,127.6,127.57,14.34706793]
[1744583397302,0.03,127.6,127.57,8.07616793]
[1744583402202,0.03,127.6,127.54,11.74272726]
[1744583402397,8.07616793,127.58,127.52,93.42750241]
[1744583402599,0.03,127.6,127.52,93.42750241]
[1744583402600,8.07616793,127.56,127.52,82.6]
[1744583402799,8.07616793,127.55,127.5,56.48059024]
[1744583404708,14.34846793,127.55,127.5,8.07616793]
[1744583405920,14.34846793,127.55,127.5,14.35066793]
[1744583406105,6.2723,127.55,127.51,8.07616793]
[1744583408206,8.1209,127.57,127.54,8.07616793]
[1744583408408,1.5468,127.57,127.56,8.07616793]
[1744583408598,14.4206,127.6,127.56,8.07616793]
[1744583409914,1.5768,127.6,127.58,8.07616793]
[1744583410387,1.5768,127.6,127.59,8.07616793]
[1744583410791,0.03,127.6,127.59,8.07616793]
[1744583414113,0.03,127.6,127.57,8.07616793]
[1744583414591,0.03,127.6,127.56,8.07616793]
[1744583414787,8.10616793,127.6,127.55,8.07616793]
[1744583415008,9.62296793,127.58,127.53,8.07616793]
[1744583415395,9.62296793,127.58,127.49,293.14594638]
[1744583415396,8.07616793,127.56,127.52,8.07616793]
[1744583415609,8.07616793,127.55,127.5,8.07616793]
[1744583415907,6.2725,127.54,127.5,8.07616793]
[1744583416520,6.2725,127.54,127.51,8.07616793]
[1744583417089,14.34866793,127.54,127.49,0.063]
[1744583417296,14.34866793,127.54,127.49,8.13916793]
[1744583417517,8.07616793,127.53,127.49,8.13916793]
[1744583417899,14.34946793,127.53,127.49,8.13916793]
[1744583418223,6.2733,127.53,127.49,8.13916793]
[1744583419219,6.2733,127.53,127.49,12.68790714]
[1744583420120,18.89820714,127.53,127.49,0.063]
[1744583420418,12.62490714,127.51,127.49,0.063]
[1744583421416,6.2745,127.5,127.49,0.063]
[1744583421803,1.5212,127.52,127.49,0.063]
[1744583422304,6.41616157,127.51,127.49,0.063]
[1744583422494,18.82136871,127.5,127.49,0.063]
[1744583423493,25.09586871,127.5,127.49,0.063]
[1744583425320,0.14216157,127.49,127.44,0.063]
[1744583425631,12.62490714,127.48,127.44,0.063]
[1744583426331,18.90050714,127.48,127.44,0.063]
[1744583426537,18.67920714,127.5,127.46,12.62490714]
[1744583426736,7.7948,127.52,127.48,12.62490714]
[1744583427927,1.5212,127.52,127.49,12.62490714]
[1744583428132,97.04610714,127.55,127.51,12.62490714]
[1744583428314,14.14610714,127.55,127.51,12.62490714]
[1744583428510,1.5212,127.55,127.51,12.62490714]
[1744583428836,14.14610714,127.55,127.5,12.62490714]
[1744583429210,20.41830714,127.55,127.5,12.62490714]
[1744583429534,7.7934,127.55,127.51,12.62490714]
[1744583429714,1.5212,127.55,127.52,12.62490714]
[1744583429916,12.62490714,127.54,127.47,6.2759]
[1744583430234,7.7935,127.55,127.51,12.62490714]
[1744583430539,1.5212,127.55,127.52,12.62490714]
[1744583431416,1.5212,127.55,127.51,12.62490714]
[1744583431811,6.2712,127.57,127.53,12.62490714]
[1744583432011,0.03,127.6,127.56,12.62490714]
[1744583432345,0.03,127.6,127.59,12.62490714]
[1744583433730,0.03,127.6,127.59,18.89490714]
[1744583434333,0.03,127.6,127.59,37.544556]
[1744583436236,0.03,127.6,127.59,12.62490714]
[1744583436621,0.03,127.6,127.59,18.89490714]
[1744583438736,0.03,127.6,127.59,12.62490714]
[1744583440051,0.03,127.6,127.59,18.89490714]
[1744583442341,7.8524,127.65,127.62,45.07613357]
[1744583442342,0.03,127.65,127.62,45.07613357]
[1744583442640,0.03,127.66,127.64,12.62490714]
[1744583442845,0.03,127.66,127.65,38.90923028]
[1744583443746,0.03,127.66,127.65,38.62490714]
[1744583443942,0.03,127.66,127.65,57.274556]
[1744583444239,0.03,127.66,127.64,26.0]
[1744583444624,0.03,127.66,127.64,38.62490714]
[1744583445156,0.03,127.66,127.65,12.62490714]
[1744583446250,0.03,127.66,127.65,18.89200714]
[1744583446637,0.03,127.66,127.65,6.2671]
[1744583446844,0.03,127.66,127.65,18.89200714]
[1744583447761,0.03,127.7,127.68,26.0]
[1744583447944,0.03,127.7,127.69,12.62490714]
[1744583448825,0.03,127.7,127.69,31.274556]
[1744583449425,0.03,127.7,127.69,12.62490714]
[1744583449938,0.03,127.7,127.69,18.89000714]
[1744583450960,0.03,127.7,127.69,37.539656]
[1744583452164,0.03,127.7,127.69,12.62490714]
[1744583452329,0.03,127.7,127.68,32.2654]
[1744583452639,0.03,127.7,127.69,12.62490714]
[1744583453049,0.03,127.7,127.69,18.89000714]
[1744583453649,0.03,127.7,127.69,37.539656]
[1744583453840,0.03,127.7,127.69,37.82397914]
[1744583454249,0.03,127.72,127.71,0.28432314]
[1744583454431,0.03,127.72,127.71,12.90923028]
[1744583454763,0.03,127.72,127.71,31.274556]
[1744583455258,0.03,127.72,127.71,37.538656]
[1744583455561,0.03,127.72,127.71,44.88900714]
[1744583456857,0.03,127.72,127.71,63.538656]
[1744583457358,0.03,127.72,127.71,63.82297914]
[1744583458064,0.03,127.72,127.71,37.82297914]
[1744583458751,0.03,127.72,127.71,18.88900714]
[1744583459066,0.03,127.72,127.71,12.62490714]
[1744583459964,0.03,127.72,127.71,38.62490714]
[1744583463336,0.03,127.72,127.7,12.62490714]
[1744583463851,0.03,127.72,127.65,0.14216157]
[1744583463852,0.03,127.72,127.66,14.6464]
[1744583464055,12.65490714,127.72,127.67,12.62490714]
[1744583464244,0.03,127.72,127.69,12.62490714]
[1744583464860,0.03,127.72,127.66,6.2664]
[1744583465079,12.65490714,127.72,127.68,12.62490714]
[1744583465238,6.2937,127.72,127.68,12.62490714]
[1744583465640,6.2937,127.72,127.69,12.62490714]
[1744583465835,12.62490714,127.7,127.66,12.62490714]
[1744583466050,83.04216157,127.71,127.64,12.62490714]
[1744583466051,12.62490714,127.69,127.64,12.62490714]
[1744583466249,12.62490714,127.7,127.65,26.0]
[1744583466452,12.62490714,127.7,127.65,38.62490714]
[1744583467164,95.66706871,127.71,127.66,12.62490714]
[1744583467368,6.2646,127.7,127.67,12.62490714]
[1744583468467,6.2646,127.7,127.68,12.62490714]
[1744583468671,6.2646,127.7,127.67,12.62490714]
[1744583468871,18.88950714,127.7,127.65,12.62490714]
[1744583469075,18.88950714,127.7,127.64,26.0]
[1744583469076,6.2646,127.7,127.67,12.62490714]
[1744583470644,6.2646,127.7,127.64,32.2674]
[1744583470839,18.88950714,127.7,127.65,12.62490714]
[1744583471060,6.2646,127.7,127.66,12.62490714]
[1744583471555,6.2646,127.7,127.67,12.62490714]
[1744583472157,6.2646,127.7,127.66,12.62490714]
[1744583474169,6.2646,127.7,127.65,12.62490714]
[1744583474646,6.2646,127.7,127.66,12.62490714]
[1744583475045,18.88950714,127.7,127.65,12.62490714]
[1744583475261,6.2646,127.7,127.65,12.62490714]
[1744583475880,14.17000714,127.68,127.63,12.62490714]
[1744583477081,1.5451,127.68,127.66,12.62490714]
[1744583477376,1.5451,127.68,127.67,12.62490714]
[1744583477575,1.5451,127.68,127.66,12.62490714]
[1744583478168,89.1655,127.69,127.67,12.62490714]
[1744583478169,82.9,127.69,127.67,12.62490714]
[1744583478359,6.2648,127.7,127.67,12.62490714]
[1744583479275,6.2648,127.7,127.63,6.2681]
[1744583479475,12.76706871,127.69,127.64,12.62490714]
[1744583479657,18.86220714,127.67,127.6,16.44126617]
[1744583479861,1.6618,127.66,127.62,12.62490714]
[1744583480380,14.28670714,127.66,127.61,12.62490714]
[1744583481183,1.6618,127.66,127.62,12.62490714]
[1744583481767,7.9287,127.66,127.62,12.62490714]
[1744583482060,82.9,127.68,127.65,12.62490714]
[1744583482267,82.9,127.68,127.66,12.62490714]
[1744583482573,1.6618,127.69,127.67,12.62490714]
[1744583483763,7.927,127.69,127.64,26.0]
[1744583483978,7.927,127.69,127.66,12.62490714]
[1744583485689,7.8991,127.66,127.59,0.063]
[1744583485992,0.28432314,127.59,127.52,0.063]
[1744583486162,12.62490714,127.53,127.52,0.063]
[1744583486565,0.42648471,127.56,127.52,0.063]
[1744583486861,12.62490714,127.55,127.52,0.063]
[1744583487062,12.62490714,127.54,127.52,0.063]
[1744583487280,20.19911137,127.53,127.52,0.063]
[1744583487857,6.2726,127.54,127.52,0.063]
[1744583488062,20.34127294,127.56,127.52,0.063]
[1744583488278,26.47121137,127.55,127.52,0.063]
[1744583488480,20.19911137,127.54,127.52,0.063]
[1744583489888,6.273,127.53,127.52,0.063]
[1744583490683,26.61427294,127.53,127.52,0.063]
[1744583490867,26.89859608,127.53,127.52,0.063]
[1744583491389,0.42648471,127.52,127.49,0.063]
[1744583491585,83.32648471,127.52,127.49,0.063]
[1744583491771,20.19911137,127.5,127.49,0.063]
[1744583492088,26.47361137,127.5,127.49,0.063]
[1744583492687,26.61577294,127.5,127.49,0.063]
[1744583492889,0.14216157,127.49,127.44,0.063]
[1744583493079,20.19911137,127.47,127.44,0.063]
[1744583494277,26.47551137,127.46,127.44,0.063]
[1744583495281,6.2764,127.46,127.44,0.063]
[1744583497095,26.47551137,127.46,127.44,0.063]
[1744583497478,26.47551137,127.46,127.42,0.063]
[1744583499405,20.19911137,127.43,127.42,0.063]
[1744583499777,82.9,127.42,127.41,0.063]
[1744583500000,0.28432314,127.41,127.4,0.063]
[1744583500196,103.52559608,127.4,127.39,0.063]
[1744583500398,103.52559608,127.4,127.39,0.0001]
[1744583500588,39.27524494,127.4,127.39,0.0001]
[1744583500894,20.62559608,127.4,127.39,0.0001]
[1744583501505,26.90499608,127.4,127.39,0.0001]
[1744583502002,26.90499608,127.4,127.33,20.26211137]
[1744583502174,20.19911137,127.38,127.33,20.26211137]
[1744583502684,82.9,127.39,127.35,20.26211137]
[1744583503298,103.09911137,127.39,127.35,0.063]
[1744583503490,6.2804,127.38,127.35,0.063]
[1744583504600,26.47951137,127.38,127.35,0.063]
[1744583504799,109.37911137,127.39,127.35,0.063]
[1744583505006,89.18,127.39,127.35,0.063]
[1744583505503,109.37911137,127.39,127.35,0.063]
[1744583506385,20.19911137,127.38,127.35,0.063]
[1744583507081,109.37911137,127.39,127.35,0.063]
[1744583507282,20.19911137,127.37,127.35,0.063]
[1744583507483,20.19911137,127.38,127.35,0.063]
[1744583507999,20.19911137,127.37,127.35,0.063]
[1744583508586,26.48051137,127.36,127.35,0.063]
[1744583508789,26.62267294,127.36,127.35,0.063]
[1744583509194,6.2809,127.37,127.35,0.063]
[1744583509505,26.48001137,127.37,127.35,0.063]
[1744583510299,26.48001137,127.37,127.33,0.063]
[1744583510805,20.19911137,127.36,127.33,0.063]
[1744583511005,20.19911137,127.35,127.33,0.063]
[1744583511705,20.62559608,127.34,127.33,0.063]
[1744583511891,20.34127294,127.34,127.33,0.063]
[1744583512208,20.19911137,127.35,127.33,0.063]
[1744583512603,6.2823,127.34,127.33,0.063]
[1744583512988,26.62357294,127.34,127.33,0.063]
[1744583513189,26.90789608,127.34,127.33,0.063]
[1744583514405,45.55754494,127.34,127.33,0.063]
[1744583514792,18.79181043,127.33,127.32,0.063]
[1744583515012,38.9909218,127.33,127.32,0.063]
[1744583516617,25.07511043,127.32,127.31,0.063]
[1744583516801,45.2742218,127.32,127.31,0.063]
[1744583517315,45.55854494,127.32,127.31,0.0001]
[1744583517913,0.42648471,127.31,127.3,0.0001]
[1744583518106,28.98559608,127.31,127.3,0.0001]
[1744583518311,47.63524494,127.31,127.3,0.0001]
[1744583518609,14.78596157,127.31,127.3,0.0001]
[1744583518810,6.2835,127.32,127.3,0.0001]
[1744583519311,26.48261137,127.32,127.3,0.0001]
[1744583519528,6.2835,127.32,127.3,0.0001]
[1744583519693,6.2835,127.32,127.23,1.507]
[1744583520016,6.2835,127.32,127.28,20.19911137]
[1744583520598,20.19911137,127.29,127.22,0.063]
[1744583520812,20.19911137,127.26,127.22,0.063]
[1744583521012,20.19911137,127.23,127.22,0.063]
[1744583521202,20.19911137,127.24,127.22,0.063]
[1744583521522,83.04216157,127.25,127.22,0.063]
[1744583521523,82.9,127.25,127.22,0.063]
[1744583522014,89.1869,127.25,127.22,0.063]
[1744583522528,20.34127294,127.24,127.22,0.063]
[1744583522715,89.1869,127.25,127.22,0.063]
[1744583523218,20.34127294,127.23,127.22,0.063]
[1744583523607,20.34127294,127.23,127.18,6.5154]
[1744583523806,20.19911137,127.22,127.17,20.19911137]
[1744583524012,6.2888,127.21,127.17,20.19911137]
[1744583524517,26.48791137,127.21,127.16,20.19911137]
[1744583524693,26.48791137,127.21,127.15,32.61561137]
[1744583524893,26.48791137,127.21,127.15,26.32391137]
[1744583525304,26.48791137,127.21,127.15,6.1248]
[1744583525501,20.19911137,127.18,127.13,20.19911137]
[1744583525693,20.19911137,127.18,127.12,26.32391137]
[1744583525919,20.19911137,127.18,127.13,20.19911137]
[1744583526213,28.53911137,127.19,127.14,20.19911137]
[1744583526404,20.19911137,127.2,127.15,20.19911137]
[1744583526604,6.2893,127.2,127.15,20.19911137]
[1744583526802,20.19911137,127.19,127.14,20.19911137]
[1744583527411,26.48841137,127.2,127.14,20.19911137]